Cogmind - Beta 10.1 @@@ ROGUE MODE // 2020.09.28 @ 20:34:42 // Winter2019/RPGLIKE Player: HOTSOUP Result: Destroyed by G-67 Veteran with Plasma Rifle Performance ------------- Evolutions (6) 3000 Regions Visited (17) 3400 Robots Destroyed (364) 1820 Value Destroyed (15039) 15039 Prototype IDs (27) 540 Alien Tech Used (0) 0 Bonus (5439) 5439 TOTAL SCORE: 29238 Bonus ------- High Alert Combat Kills 3213 Follower Combat Kills 982 Entered Garrisons 600 Used RIF Installer 1500 Aligned with FarCom 300 Friendly Fire -1156 Cogmind --------- Core Integrity 0/1150 Matter 259/300 Energy 974/1300 System Corruption 0% Temperature Cool (106) Movement Hovering (106) Ox1 Location -4/Factory Parts ------- > --- POWER (2) -------- Antimatter Reactor Antimatter Reactor > --- PROPULSION (3) --- Improved Gravmag System Gravmag Array > --- UTILITY (6) ------ Advanced Heat Sink Advanced Cooling System Energy Well Gravity Neutralizing Apparatus Advanced Targeting Computer Advanced Particle Charger > --- WEAPON (5) ------- Advanced Plasma Cannon Advanced Plasma Cannon Advanced Plasma Cannon Matter Neutralizer Matter Neutralizer > --- INVENTORY (5) ---- System Restoration Module Micro-nuke Launcher Micro-nuke Launcher Micro-nuke Launcher Peak State ------------ > --- POWER ------------ Antimatter Reactor Antimatter Reactor > --- PROPULSION ------- Improved Gravmag System Gravmag Array > --- UTILITY ---------- Advanced Heat Sink Advanced Cooling System Energy Well Gravity Neutralizing Apparatus Advanced Targeting Computer Advanced Particle Charger > --- WEAPON ----------- Matter Neutralizer Matter Neutralizer Micro-nuke Launcher Micro-nuke Launcher Micro-nuke Launcher > --- INVENTORY -------- System Restoration Module Advanced Plasma Cannon Advanced Plasma Cannon Advanced Plasma Cannon [Rating: 98] Favorites ----------- Power Light Nuclear Core Engine Reinforced Deuterium Engine Power Core Light Nuclear Core Reactor Antimatter Reactor Propulsion Gravmag System Leg Aluminum Leg Wheel Wheel Hover Unit Gravmag System Flight Unit Nuclear Pulse Thruster Utility Large Battery Device Improved Particle Charger Storage Large Battery Processor Enhanced Optical Array Hackware System Shield Protection Damper Plating Weapon Plasma Cannon Energy Gun Pulse Rifle Energy Cannon Plasma Cannon Ballistic Gun AWS/Gauss Ballistic Cannon Light Cannon Launcher Advanced EMP Blaster Special Weapon Improved Remote Datajack Slashing Weapon Chainsword Build | -11 -10 -10 -9 -9 -9 -8 -8 -7 -7 -7 -7 -6 -6 -6 -5 -5 -4 ------- Run | Scr Mat Min Mat Min Exi Min Mat Fac Gar Fac Gar Fac Was Fac Fac Gar Fac Slots Evolved 12 | 3 . 3 . 1 . . 2 2 . . . . . . . . 1 Power 1 | . . . . . . . . . . . . . . . . . 1 Propulsion 2 | . . 1 . . . . . 1 . . . . . . . . . Utility 5 | . . 1 . 1 . . 2 1 . . . . . . . . . Weapon 4 | 3 . 1 . . . . . . . . . . . . . . . Parts Attached 179 | 5 28 6 11 2 2 3 11 33 3 3 3 24 8 10 1 16 10 Power 15 | 1 2 . 1 1 . . 2 5 . . . 1 1 . . . 1 Engine 8 | 1 2 . 1 . . . 2 1 . . . 1 . . . . . Core 5 | . . . . 1 . . . 4 . . . . . . . . . Reactor 2 | . . . . . . . . . . . . . 1 . . . 1 Propulsion 19 | 1 4 3 . . . 2 . 4 . . . 5 . . . . . Treads . | . . . . . . . . . . . . . . . . . . Leg 1 | . 1 . . . . . . . . . . . . . . . . Wheel 10 | 1 3 3 . . . 2 . 1 . . . . . . . . . Hover 6 | . . . . . . . . 3 . . . 3 . . . . . Flight 2 | . . . . . . . . . . . . 2 . . . . . Utility 67 | . 4 . 3 1 1 1 4 14 3 2 2 9 4 8 . 8 3 Device 37 | . 1 . 2 1 1 1 1 9 . 1 . 4 2 6 . 6 2 Storage 5 | . 2 . 1 . . . . . . 1 . . . 1 . . . Processor 11 | . 1 . . . . . 1 5 . . . 1 . 1 . 1 1 Hackware 12 | . . . . . . . 2 . 3 . 2 4 . . . 1 . Protection 2 | . . . . . . . . . . . . . 2 . . . . Artifact . | . . . . . . . . . . . . . . . . . . Weapon 78 | 3 18 3 7 . 1 . 5 10 . 1 1 9 3 2 1 8 6 Energy Gun 14 | 3 5 . 4 . . . . . . . . . 1 . . 1 . Energy Cannon 45 | . 9 1 3 . . . 3 8 . . . 9 1 2 1 5 3 Ballistic Gun 4 | . . 1 . . 1 . . 1 . . . . 1 . . . . Ballistic Cannon 1 | . . 1 . . . . . . . . . . . . . . . Launcher 12 | . 4 . . . . . 2 . . . 1 . . . . 2 3 Special Weapon 1 | . . . . . . . . . . 1 . . . . . . . Impact Weapon . | . . . . . . . . . . . . . . . . . . Slashing Weapon 1 | . . . . . . . . 1 . . . . . . . . . Piercing Weapon . | . . . . . . . . . . . . . . . . . . Special Melee Weapon . | . . . . . . . . . . . . . . . . . . Unidentified Prototypes 7 | . . . . . 3 . 1 . . . . 1 1 1 . . . Parts Lost 4 | . . . . . . . . . . . . . 1 . . 2 1 Power . | . . . . . . . . . . . . . . . . . . Propulsion . | . . . . . . . . . . . . . . . . . . Utility 3 | . . . . . . . . . . . . . . . . 2 1 Weapon 1 | . . . . . . . . . . . . . 1 . . . . Highest Loss Streak 2 | . . . . . . . . . . . . . 1 . . 2 1 Average Slot Usage (%) 93 | . 93 98 96 91 88 81 89 94 99 100 100 91 78 88 93 92 92 Engine 2 | . 13 11 10 1 . . 2 1 . . . 5 2 . . . . Core 3 | . . . . 8 9 9 4 5 6 6 6 . . . . . . Reactor 1 | . . . . . . . . . . . . . 2 6 6 6 11 Wheel 4 | . 11 12 20 18 18 18 15 2 . . . . . . . . . Hover 11 | . . . . . . . . 13 20 20 20 13 13 13 13 13 12 Device 10 | . 1 . 6 9 9 9 15 11 16 7 6 10 2 9 13 18 21 Storage 5 | . 9 11 10 9 9 9 7 6 6 4 6 . . 5 6 6 6 Processor 2 | . 1 . . . . . 2 6 5 . . . . 4 6 1 3 Hackware 13 | . . . . . . . 6 13 9 26 26 26 20 15 13 12 5 Energy Gun 2 | . 19 . 30 18 12 . . . . . . . . . . . . Energy Cannon 22 | . 17 5 11 27 27 27 19 19 26 26 20 20 22 28 33 32 27 Ballistic Gun 1 | . . 11 2 . 2 9 7 1 . . . . 1 1 . . . Launcher 6 | . 16 36 3 . . . 3 7 6 1 5 6 . . . . 3 Special Weapon 1 | . . . . . . . . . . 4 6 6 6 1 . . . Naked Turns 8 | . 8 . . . . . . . . . . . . . . . . Heaviest Build 100 | 8 20 17 27 28 32 33 46 50 48 46 44 59 100 97 67 73 100 Greatest Support 69 | 21 21 25 25 25 25 25 25 48 48 48 48 57 57 69 69 69 69 Greatest Overweight (x) 2 | . 2 1 1 1 1 1 1 2 . . . 2 1 1 . 1 1 Average Overweight (x) . | . . . . 1 1 1 1 . . . . . 1 . . . 1 Largest Inventory Capacity 5 | . . 1 1 1 1 1 1 2 2 2 3 5 5 5 5 5 5 Average Capacity 2 | . . . 1 1 1 1 1 1 2 2 2 4 5 5 5 5 5 Most Carried 5 | . . 1 1 1 1 1 1 2 2 2 3 5 5 5 5 5 5 Average Carried 2 | . . . . . . 1 . 1 1 1 1 4 4 4 5 4 4 Final Capacity 5 | . . 1 1 1 1 1 1 2 2 2 3 5 5 5 5 5 5 Final Carried 5 | . . 1 1 . 1 1 1 2 2 2 3 5 5 5 5 5 4 Class Distribution -------------------- 52% | Hacker-Gunner 31% | Hacker-Mutant 4% | Gunner 3% | Mutant 3% | Bothacker-Mutant Dominant Class ---------------- Gunner | -10/Materials Mutant | -10/Mines Hacker-Gunner | -9/Materials Hacker-Gunner | -9/Mines Hacker-Mutant | -9/Exiles Hacker-Gunner | -8/Mines Hacker-Gunner | -8/Materials Hacker-Gunner | -7/Factory Hacker-Gunner | -7/Garrison Hacker-Gunner | -7/Factory Hacker-Mutant | -7/Garrison Hacker-Mutant | -6/Factory Hacker-Gunner | -6/Waste Hacker-Gunner | -6/Factory Hacker-Gunner | -5/Factory Hacker-Gunner | -5/Garrison Hacker-Gunner | -4/Factory Resources | -11 -10 -10 -9 -9 -9 -8 -8 -7 -7 -7 -7 -6 -6 -6 -5 -5 -4 ----------- Run | Scr Mat Min Mat Min Exi Min Mat Fac Gar Fac Gar Fac Was Fac Fac Gar Fac Matter Collected 3816 | 250 234 417 37 125 5 50 120 754 171 32 217 769 50 88 . 330 167 Remotely . | . . . . . . . . . . . . . . . . . . Salvage Created 13744 | . 638 341 347 176 5 174 805 3625 1054 448 761 2739 702 88 . 1438 403 Parts 736 | . 54 25 16 10 . 12 53 203 60 20 46 130 22 3 . 63 19 Haulers Intercepted 7 | . 2 . . . . . 1 2 . . . 2 . . . . . Recyclers Shooed 6 | . 1 1 1 . . . . 2 . . . 1 . . . . . Parts Field Recycled . | . . . . . . . . . . . . . . . . . . Retrieved Matter . | . . . . . . . . . . . . . . . . . . Parts Self-Destructed . | . . . . . . . . . . . . . . . . . . Prevented . | . . . . . . . . . . . . . . . . . . Kills | -11 -10 -10 -9 -9 -9 -8 -8 -7 -7 -7 -7 -6 -6 -6 -5 -5 -4 ------- Run | Scr Mat Min Mat Min Exi Min Mat Fac Gar Fac Gar Fac Was Fac Fac Gar Fac Combat Hostiles Destroyed 259 | . 15 12 4 9 . 3 20 58 30 7 28 35 6 1 . 26 5 Melee 1 | . . . . . . . . 1 . . . . . . . . . Guns 38 | . 5 2 3 6 . 1 11 10 . . . . . . . . . Cannons 129 | . 5 1 1 3 . 2 8 18 20 6 20 17 6 1 . 18 3 AOE 78 | . 5 9 . . . . 1 27 10 . 8 10 . . . 6 2 Classes Destroyed 21 | . 7 2 1 1 1 1 2 3 . . 1 1 1 . . . . Worker 25 | . . 1 . . . 2 2 14 . . . 5 . . . . 1 Builder 19 | . 2 1 . . . . 2 8 . . . 6 . . . . . Tunneler 6 | . . 3 . . . . . 1 . . . 2 . . . . . Hauler 7 | . 2 . . . . . 1 2 . . . 2 . . . . . Recycler 13 | . 1 2 1 . . . . 6 . . . 3 . . . . . Mechanic 3 | . . . . . . . 1 . . 1 . 1 . . . . . Operator 3 | . 1 . 1 . . . 1 . . . . . . . . . . Drone 1 | . . . . . 1 . . . . . . . . . . . . Watcher 24 | . 3 . 3 . . . 1 7 . 2 . 5 . . . . 3 Swarmer 58 | . 3 9 . 4 . . 3 4 15 2 12 2 . . . 4 . Grunt 124 | . 12 3 2 3 . 2 11 36 8 . 10 22 . . . 12 3 Brawler 6 | . . . . . . 1 . . 1 . 2 . . . . 2 . Duelist 7 | . . . . . . . . 1 1 . 3 2 . . . . . Sentry 29 | . . . 2 . . . 4 9 3 3 . 6 . 1 . 1 . Demolisher 2 | . . . . . . . . 2 . . . . . . . . . Specialist 3 | . . . . . . . . . . . 1 . . . . 2 . Hunter 15 | . . . . . . . 2 4 1 . . 1 . . . 5 2 Programmer 9 | . . . . . . . . 2 1 2 . 4 . . . . . Behemoth 1 | . . . . . . . . . . . . 1 . . . . . Compactor 6 | . . . . . . . . . . . . . 6 . . . . Assembled 2 | . . . . 2 . . . . . . . . . . . . . Thug 1 | . . . . . . . . 1 . . . . . . . . . Best Kill Streak 18 | . 6 8 4 4 . 4 11 18 6 2 13 8 2 1 . 8 3 Combat Bots Only 13 | . 5 8 3 4 . 3 3 9 6 2 13 7 2 1 . 8 2 Max Kills in Single Turn 9 | . 3 4 1 1 1 2 2 9 3 1 2 6 1 1 . 2 2 Gunslinging . | . . . . . . . . . . . . . . . . . . Exploded 3 | . 3 3 . . . . 1 2 3 . 2 3 . . . 2 2 Melee 1 | . . . . . . . . 1 . . . . . . . . . Uniques/NPCs Destroyed . | . . . . . . . . . . . . . . . . . . Combat | -11 -10 -10 -9 -9 -9 -8 -8 -7 -7 -7 -7 -6 -6 -6 -5 -5 -4 -------- Run | Scr Mat Min Mat Min Exi Min Mat Fac Gar Fac Gar Fac Was Fac Fac Gar Fac Damage Taken 7280 | . 520 237 204 176 . 1 542 983 573 163 310 1868 70 163 . 929 541 Core 5760 | . 404 182 162 137 . . 433 773 453 129 242 1487 37 131 . 739 451 Absorbed by Shields 44 | . . . . . . . . . 13 . . 1 . . . 30 . Redirected to Core 5044 | . 356 167 146 131 . . 375 688 410 116 227 1311 37 112 . 645 323 Core Remaining (%) 87 | 100 . 95 . . . 97 92 . . . 100 . . 86 . 39 . Volleys Fired 617 | . 26 60 12 11 4 5 35 113 59 26 59 132 18 2 . 40 15 Largest 5 | . 4 5 5 5 5 3 3 5 5 5 4 4 4 5 . 5 5 Hottest 504 | . 240 175 312 330 330 204 240 356 356 356 276 330 392 490 . 482 504 Shots Fired 1583 | . 98 79 54 52 9 18 137 274 134 69 117 251 63 10 . 152 66 Gun 263 | . 42 59 39 20 6 4 48 45 . . . . . . . . . Cannon 1052 | . 44 8 15 32 3 14 85 143 110 62 91 178 63 10 . 134 60 Launcher 214 | . 12 12 . . . . 4 86 24 1 19 32 . . . 18 6 Special 54 | . . . . . . . . . . 6 7 41 . . . . . Kinetic 166 | . . 63 6 . . 4 48 45 . . . . . . . . . Thermal 1113 | . 50 4 48 52 9 14 85 143 110 62 91 178 63 10 . 134 60 Explosive 30 | . 12 12 . . . . . . . . . . . . . . 6 Electromagnetic 220 | . 36 . . . . . 4 86 24 1 19 32 . . . 18 . Robot Hit Streak 33 | . 10 6 6 8 1 7 26 18 18 23 18 18 33 5 . 30 17 Robot Miss Streak 5 | . 4 2 4 2 5 1 5 3 3 5 2 3 1 1 . 1 4 Penetration Max . | . . . . . . . . . . . . . . . . . . Secondary Targets 2 | . 2 . . . . . . . . . . . . . . . . Max Gunslinging Chain 1 | . 1 . . . . . . . . . . . . . . . . Autonomous 98 | . . . . . . 4 48 46 . . . . . . . . . Shots Hit Robots 877 | . 52 48 23 23 1 11 93 126 60 44 62 160 53 5 . 71 45 Core Hits 535 | . 34 31 12 10 1 7 38 143 38 12 38 90 13 2 . 47 19 Critical Hits 13 | . . 1 . . . 1 2 2 2 . . 1 . . . 3 1 Critical Kills 4 | . . . . . . 1 . . 2 . . . . . . . 1 Critical Parts Destroyed 9 | . . 1 . . . . 2 2 . . . 1 . . . 3 . Melee Attacks 10 | . . . . . . . . 10 . . . . . . . . . Impact . | . . . . . . . . . . . . . . . . . . Slashing 10 | . . . . . . . . 10 . . . . . . . . . Piercing . | . . . . . . . . . . . . . . . . . . Sneak Attacks 1 | . . . . . . . . 1 . . . . . . . . . Combat Hostiles . | . . . . . . . . . . . . . . . . . . Follow-up Attacks . | . . . . . . . . . . . . . . . . . . Damage Inflicted 39199 | . 1286 1024 420 322 35 349 2908 9280 2685 1374 2742 8035 2209 191 . 3965 2374 Guns 3840 | . 192 337 266 232 35 158 1254 1366 . . . . . . . . . Cannons 20379 | . 366 69 148 90 . 188 1357 2137 1813 1329 2028 4177 2209 191 . 2725 1552 Explosions 14604 | . 728 618 . . . . 288 5431 872 45 714 3846 . . . 1240 822 Melee 338 | . . . . . . . . 338 . . . . . . . . . Ramming 38 | . . . 6 . . 3 9 8 . . . 12 . . . . . Kinetic 3135 | . . 337 20 . . 158 1254 1366 . . . . . . . . . Thermal 24878 | . 593 69 394 322 35 188 1471 3899 1887 1329 2084 5783 2209 191 . 2872 1552 Explosive 2032 | . 523 618 . . . . . 43 . 26 . . . . . . 822 Electromagnetic 8778 | . 170 . . . . . 174 3626 798 19 658 2240 . . . 1093 . Impact . | . . . . . . . . . . . . . . . . . . Slashing 338 | . . . . . . . . 338 . . . . . . . . . Piercing . | . . . . . . . . . . . . . . . . . . Highest Corruption 10 | . . . 2 2 2 2 2 2 . 4 1 7 . 1 . 10 . Average Corruption 3 | . . . 1 2 2 2 1 1 . 3 1 4 . 1 . 5 . Corruption Purged 25 | . . . . . . . . 2 . 4 . 7 . 1 . 11 . Effects 114 | . . . 1 5 4 3 1 2 . 5 5 59 . . . 29 . Message Errors 23 | . . . . . . . . . . 1 1 13 . . . 8 . Matter Fused 16 | . . . . . . . . . . 1 . 10 . . . 5 . Heat Flow Errors 17 | . . . . 1 2 2 . . . 2 . 6 . . . 4 . Energy Discharges 13 | . . . . . 1 . . 1 . . 2 8 . . . 1 . Data Loss (minor) 12 | . . . . 1 . . 1 1 . . . 6 . . . 3 . Data Loss (major) 4 | . . . . . . . . . . . . 1 . . . 3 . Misfires 6 | . . . . . . . . . . . . 6 . . . . . Alerts 1 | . . . . . . . . . . . . . . . . 1 . Targeting Errors 19 | . . . 1 2 1 . . . . 1 1 9 . . . 4 . Weapon Failures 3 | . . . . 1 . 1 . . . . 1 . . . . . . Overload Shots . | . . . . . . . . . . . . . . . . . . Overflow Damage 1838 | . 43 49 . . . 2 118 443 70 198 116 530 . . . 89 180 Projectiles 1046 | . . . . . . 2 118 154 64 198 116 192 . . . 74 128 Explosions 792 | . 43 49 . . . . . 289 6 . . 338 . . . 15 52 Melee . | . . . . . . . . . . . . . . . . . . Knockbacks . | . . . . . . . . . . . . . . . . . . Impact . | . . . . . . . . . . . . . . . . . . Kinetic . | . . . . . . . . . . . . . . . . . . Secondary . | . . . . . . . . . . . . . . . . . . Self-Inflicted Damage 519 | . 63 61 3 . . 1 4 41 12 . 22 236 . . . 76 . Shots 20 | . 2 2 . . . . . 3 1 . 1 6 . . . 5 . Rammed 6 | . . . 1 . . 1 1 1 . . . 2 . . . . . Targets Rammed 6 | . . . 1 . . 1 1 1 . . . 2 . . . . . Kicked . | . . . . . . . . . . . . . . . . . . Crushed . | . . . . . . . . . . . . . . . . . . Highest Temperature 632 | . 632 6 215 208 66 70 . 499 507 269 69 216 540 438 . 424 252 Average Temperature 122 | . 180 4 85 93 43 63 . 102 169 105 17 73 192 214 . 112 105 Received Heat Transfer 1500 | . 204 45 81 27 . . 171 141 108 48 54 420 . 36 . 132 33 Effects 17 | . 9 . . . . . . . 1 . . . 5 . . 1 1 Shutdowns 3 | . 1 . . . . . . . 1 . . . 1 . . . . Energy Bleed 4 | . 1 . . . . . . . . . . . 1 . . 1 1 Interference 1 | . 1 . . . . . . . . . . . . . . . . Matter Decay 2 | . . . . . . . . . . . . . 2 . . . . Short Circuit 3 | . 3 . . . . . . . . . . . . . . . . Damage (minor) 1 | . . . . . . . . . . . . . 1 . . . . Damage (major) 3 | . 3 . . . . . . . . . . . . . . . . Siege Activations . | . . . . . . . . . . . . . . . . . . Robots Corrupted 10 | . . . . . . . . 2 . . . 7 . . . 1 . Combat Hostiles 10 | . . . . . . . . 2 . . . 7 . . . 1 . Parts Fried 40 | . . . . . . . . 19 1 . 5 8 . . . 7 . Impact Corruptions . | . . . . . . . . . . . . . . . . . . Robots Melted 3 | . . . . . . . . . . 1 . 1 . . . 1 . Combat Hostiles 3 | . . . . . . . . . . 1 . 1 . . . 1 . Parts Melted 55 | . . . 3 1 . . 4 7 5 4 7 15 5 1 . 2 1 Heat Transferred 30682 | . 977 148 814 629 74 296 2398 4725 2550 1700 2797 6072 2800 250 . 2897 1555 Parts Sabotaged . | . . . . . . . . . . . . . . . . . . Parts Stolen . | . . . . . . . . . . . . . . . . . . Parts Stripped . | . . . . . . . . . . . . . . . . . . Power Chain Reactions 36 | . . . . . . . 2 18 2 . 2 7 . . . 5 . Missiles Intercepted . | . . . . . . . . . . . . . . . . . . Alert | -11 -10 -10 -9 -9 -9 -8 -8 -7 -7 -7 -7 -6 -6 -6 -5 -5 -4 ------- Run | Scr Mat Min Mat Min Exi Min Mat Fac Gar Fac Gar Fac Was Fac Fac Gar Fac Peak Influence 1843 | . 247 296 352 203 . 118 485 1182 1843 1098 1110 1265 442 576 282 895 1215 Initial 967 | . . 76 97 23 . . 45 53 827 967 282 582 442 289 282 197 469 Average 508 | . 145 206 224 181 . 13 196 394 1450 514 753 627 422 315 282 595 545 Maximum Alert Level 5 | . 1 1 1 1 . . 2 4 5 3 4 4 2 2 1 3 4 Low Security (%) 22 | 100 59 41 42 21 . 100 61 38 . . . 6 . 13 . 1 . Level 1 20 | . 40 58 57 78 . . 30 15 . 16 10 16 . 63 100 6 4 Level 2 33 | . . . . . . . 7 28 . 70 18 37 100 23 . 75 85 Level 3 16 | . . . . . . . . 13 24 13 67 32 . . . 16 5 Level 4 4 | . . . . . . . . 4 30 . 2 6 . . . . 3 Level 5 3 | . . . . . . . . . 45 . . . . . . . . High Security . | . . . . . . . . . . . . . . . . . . Max Security . | . . . . . . . . . . . . . . . . . . Squads Dispatched 57 | . 3 . . . . . 3 25 . 4 . 17 . . . . 5 Investigation 25 | . 2 . . . . . 2 10 . 1 . 6 . . . . 4 Extermination 11 | . . . . . . . . 5 . 3 . 2 . . . . 1 Reinforcement 10 | . 1 . . . . . 1 4 . . . 4 . . . . . Assault 5 | . . . . . . . . 3 . . . 2 . . . . . Garrison 6 | . . . . . . . . 3 . . . 3 . . . . . Intercept . | . . . . . . . . . . . . . . . . . . Construction Impeded 5 | . . . . . . . . 4 . . . 1 . . . . . Haulers Reinforced 3 | . . . . . . . . . . . . 3 . . . . . Stealth | -11 -10 -10 -9 -9 -9 -8 -8 -7 -7 -7 -7 -6 -6 -6 -5 -5 -4 --------- Run | Scr Mat Min Mat Min Exi Min Mat Fac Gar Fac Gar Fac Was Fac Fac Gar Fac Distress Signals 11 | . 2 . . . . . 1 . . 2 . 5 . . . . 1 Communications Jammed 9 | . . . . . . . . . . . . 9 . . . . . Distress Signals 8 | . . . . . . . . . . . . 8 . . . . . Times Spotted 343 | . 20 10 11 15 . 3 22 72 29 7 26 70 5 2 5 28 18 Peak Tracking Total 16 | . 5 3 2 16 . 2 3 6 4 1 5 8 2 2 5 6 6 Tactical Retreats 30 | . . . . . . . 1 13 2 . 3 7 . . . 4 . Traps | -11 -10 -10 -9 -9 -9 -8 -8 -7 -7 -7 -7 -6 -6 -6 -5 -5 -4 ------- Run | Scr Mat Min Mat Min Exi Min Mat Fac Gar Fac Gar Fac Was Fac Fac Gar Fac Traps Triggered 55 | . 2 . . . . . 2 9 9 3 11 12 . 2 . 5 . Indirectly 17 | . . . . . . . . 6 3 . 4 2 . . . 2 . Trap Hack Attempts . | . . . . . . . . . . . . . . . . . . Triggered . | . . . . . . . . . . . . . . . . . . Disarmed 1 | . . . . . . . . . . . . 1 . . . . . Reprogrammed 1 | . . . . . . . . . . . . 1 . . . . . Reused 1 | . . . . . . . . . . . . 1 . . . . . Traps Extracted . | . . . . . . . . . . . . . . . . . . Installed . | . . . . . . . . . . . . . . . . . . Triggered 4 | . . . . . . . . . . . 1 2 . . . 1 . Machines | -11 -10 -10 -9 -9 -9 -8 -8 -7 -7 -7 -7 -6 -6 -6 -5 -5 -4 ---------- Run | Scr Mat Min Mat Min Exi Min Mat Fac Gar Fac Gar Fac Was Fac Fac Gar Fac Machines Disabled 95 | . 4 1 1 1 . 1 5 32 6 3 5 29 . 1 . 2 4 Max in Single Turn 8 | . 2 1 1 1 . 1 1 8 1 1 1 6 . 1 . 1 . Garrison Access 7 | . . . . . . . . 1 . 1 . 3 . 1 . . 1 Garrison Relay 9 | . . . . . . . . . 4 . 4 . . . . 1 . Machines Sabotaged . | . . . . . . . . . . . . . . . . . . Garrisons Compromised 1 | . . . . . . . . 1 . . . . . . . . . Overloaded Fab Kills . | . . . . . . . . . . . . . . . . . . Fab Network Shutdowns 2 | . . . . . . . . . . . . . . 1 . . 1 Hacking | -11 -10 -10 -9 -9 -9 -8 -8 -7 -7 -7 -7 -6 -6 -6 -5 -5 -4 --------- Run | Scr Mat Min Mat Min Exi Min Mat Fac Gar Fac Gar Fac Was Fac Fac Gar Fac Machines Accessed 89 | . 7 . 6 . 1 1 5 24 . 11 . 21 . 2 2 . 9 Terminals 56 | . 6 . 6 . . 1 5 14 . 7 . 13 . . 1 . 3 Fabricators 9 | . . . . . . . . 2 . 1 . 3 . 1 . . 2 Repair Stations 3 | . . . . . . . . 2 . . . . . . . . 1 Recycling Units 1 | . 1 . . . . . . . . . . . . . . . . Scanalyzers 9 | . . . . . . . . 4 . 1 . 2 . . . . 2 Garrison Access 10 | . . . . . . . . 2 . 2 . 3 . 1 1 . 1 Total Hacks 425 | . 18 . 31 . 1 3 29 132 . 57 . 110 . 7 3 . 34 Successful 292 | . 9 . 23 . 1 1 19 95 . 32 . 80 . 6 3 . 23 Failed 133 | . 9 . 8 . . 2 10 37 . 25 . 30 . 1 . . 11 Catastrophic 9 | . . . . . . . . 6 . . . 3 . . . . . Database Lockouts . | . . . . . . . . . . . . . . . . . . Manual 236 | . 16 . 23 . 1 1 22 64 . 33 . 65 . 3 1 . 7 Terminals 316 | . 17 . 31 . . 3 29 96 . 45 . 75 . . 2 . 18 Fabricators 41 | . . . . . . . . 9 . 2 . 17 . 4 . . 9 Repair Stations 11 | . . . . . . . . 9 . . . . . . . . 2 Recycling Units 1 | . 1 . . . . . . . . . . . . . . . . Scanalyzers 13 | . . . . . . . . 6 . 1 . 2 . . . . 4 Garrison Access 42 | . . . . . . . . 12 . 9 . 16 . 3 1 . 1 Terminal Hacks 135 | . 3 . 15 . 1 1 13 43 . 16 . 35 . . 1 . 7 Record 7 | . . . . . 1 . . 4 . . . 2 . . . . . Part Schematic 10 | . . . . . . . . 3 . 1 . 6 . . . . . Robot Schematic 2 | . . . . . . . . . . . . 2 . . . . . Robot Analysis 1 | . . . . . . . . . . . . 1 . . . . . Prototype ID Bank 14 | . 2 . 6 . . . 3 2 . . . 1 . . . . . Level Access Points 2 | . . . . . . . . 1 . . . 1 . . . . . Branch Access Points 5 | . . . . . . . 1 1 . 1 . 1 . . . . 1 Emergency Access Points 1 | . . . . . . . . . . . . 1 . . . . . Machine Index 5 | . . . . . . . 1 1 . 1 . 1 . . 1 . . Terminal Index 5 | . . . 1 . . 1 1 . . 1 . 1 . . . . . Alert Level 9 | . . . 2 . . . 1 6 . . . . . . . . . Unreport Threat 25 | . . . 3 . . . 3 7 . 4 . 3 . . . . 5 Locate Traps 3 | . 1 . . . . . . . . 1 . 1 . . . . . Disarm Traps 1 | . . . . . . . . . . . . 1 . . . . . Reprogram Traps 1 | . . . . . . . . . . . . 1 . . . . . Dispatch Records 9 | . . . 1 . . . 2 1 . 2 . 3 . . . . . Security Status 1 | . . . . . . . . 1 . . . . . . . . . Surveillance Status 1 | . . . . . . . . . . 1 . . . . . . . Extermination Status 1 | . . . . . . . . 1 . . . . . . . . . Reinforcement Status 1 | . . . . . . . . 1 . . . . . . . . . Recall Investigation 6 | . . . 1 . . . . 2 . . . 3 . . . . . Recall Extermination 8 | . . . . . . . . 4 . 2 . 1 . . . . 1 Recall Reinforcements 3 | . . . . . . . 1 1 . . . 1 . . . . . Recall Assault 3 | . . . . . . . . 2 . . . 1 . . . . . Hauler Manifests 2 | . . . . . . . . . . 1 . 1 . . . . . Registered Components 2 | . . . . . . . . 1 . 1 . . . . . . . Registered Prototypes 2 | . . . 1 . . . . 1 . . . . . . . . . Zone Layout 5 | . . . . . . . . 3 . . . 2 . . . . . Fabricator Hacks 22 | . . . . . . . . 7 . . . 9 . 2 . . 4 Network Status 1 | . . . . . . . . 1 . . . . . . . . . Load Schematic 9 | . . . . . . . . 3 . . . 4 . 1 . . 1 Build 12 | . . . . . . . . 3 . . . 5 . 1 . . 3 Repair Station Hacks 8 | . . . . . . . . 6 . . . . . . . . 2 Scan Component 5 | . . . . . . . . 4 . . . . . . . . 1 Repair 3 | . . . . . . . . 2 . . . . . . . . 1 Recycling Unit Hacks . | . . . . . . . . . . . . . . . . . . Scanalyzer 6 | . . . . . . . . 2 . . . 1 . . . . 3 Insert Component 3 | . . . . . . . . 1 . . . 1 . . . . 1 Analyze 3 | . . . . . . . . 1 . . . . . . . . 2 Garrison Access Hacks 15 | . . . . . . . . 4 . 3 . 4 . 2 1 . 1 Unlock Access 4 | . . . . . . . . 2 . 1 . . . . 1 . . Seal Access 6 | . . . . . . . . 1 . 1 . 2 . 1 . . 1 Coupler Status 5 | . . . . . . . . 1 . 1 . 2 . 1 . . . Unauthorized Hacks 106 | . 6 . 8 . . . 6 33 . 13 . 31 . 2 1 . 6 Terminals 68 | . 5 . 8 . . . 6 22 . 8 . 15 . . 1 . 3 Track 3 | . . . 1 . . . . 2 . . . . . . . . . Assimilate 3 | . . . . . . . . 3 . . . . . . . . . Botnet 52 | . 5 . 6 . . . 4 14 . 7 . 12 . . 1 . 3 Detonate 1 | . . . . . . . 1 . . . . . . . . . . Disrupt 5 | . . . 1 . . . 1 2 . . . 1 . . . . . Operators 4 | . . . . . . . . 1 . 1 . 2 . . . . . Fabricators 12 | . . . . . . . . 2 . 1 . 6 . 1 . . 2 Prioritize 6 | . . . . . . . . 1 . . . 3 . 1 . . 1 Siphon 6 | . . . . . . . . 1 . 1 . 3 . . . . 1 Repair Stations . | . . . . . . . . . . . . . . . . . . Recycling Units 1 | . 1 . . . . . . . . . . . . . . . . Tunnel 1 | . 1 . . . . . . . . . . . . . . . . Scanalyzers 7 | . . . . . . . . 4 . 1 . 1 . . . . 1 Extract 7 | . . . . . . . . 4 . 1 . 1 . . . . 1 Garrison Access 18 | . . . . . . . . 5 . 3 . 9 . 1 . . . Restock 6 | . . . . . . . . 1 . 1 . 3 . 1 . . . Redirect 1 | . . . . . . . . . . 1 . . . . . . . Reprogram 7 | . . . . . . . . 2 . 1 . 4 . . . . . Intercept 3 | . . . . . . . . 1 . . . 2 . . . . . Watchers 1 | . . . . . . . . 1 . . . . . . . . . Data Cores Recovered 1 | . . . 1 . . . . . . . . . . . . . . Used . | . . . . . . . . . . . . . . . . . . Hacking Detections 59 | . 4 . 5 . . 1 5 15 . 6 . 15 . 1 1 . 6 Full Trace Events 18 | . 2 . 2 . . . 2 4 . . . 5 . . . . 3 Feedback Events 3 | . . . 2 . . . . . . . . . . . . . 1 Corruption 2 | . . . 2 . . . . . . . . . . . . . . Hackware Fried 1 | . . . . . . . . . . . . . . . . . 1 Feedback Blocked . | . . . . . . . . . . . . . . . . . . Robot Schematics Acquired 2 | . . . . . . . . . . . . 2 . . . . . Robots Built 4 | . . . . . . . . . . . . . . . . . 4 Matter 556 | . . . . . . . . . . . . . . . . . 556 Time 84 | . . . . . . . . . . . . . . . . . 84 Total Robot Build Rating 24 | . . . . . . . . . . . . . . . . . 24 Part Schematics Acquired 53 | . . . . . . . . 17 . 2 . 25 . . . . 9 Parts Built 13 | . . . . . . . . 5 . . . 6 . 2 . . . Matter 1434 | . . . . . . . . 427 . . . 795 . 212 . . . Time 325 | . . . . . . . . 142 . . . 157 . 26 . . . Total Part Build Rating 72 | . . . . . . . . 24 . . . 36 . 12 . . . Parts Repaired 3 | . . . . . . . . 2 . . . . . . . . 1 Time 152 | . . . . . . . . 66 . . . . . . . . 86 Parts Recycled . | . . . . . . . . . . . . . . . . . . Recycled Matter . | . . . . . . . . . . . . . . . . . . Retrieved Matter . | . . . . . . . . . . . . . . . . . . Retrieved Components . | . . . . . . . . . . . . . . . . . . Parts Scanalyzed 2 | . . . . . . . . 1 . . . . . . . . 1 Part Schematics Acquired 2 | . . . . . . . . 1 . . . . . . . . 1 Parts Damaged 1 | . . . . . . . . . . . . . . . . . 1 Bothacking | -11 -10 -10 -9 -9 -9 -8 -8 -7 -7 -7 -7 -6 -6 -6 -5 -5 -4 ------------ Run | Scr Mat Min Mat Min Exi Min Mat Fac Gar Fac Gar Fac Was Fac Fac Gar Fac Used RIF Installer 3 | . . . . . . . . . 1 . 1 . . . . 1 . Command Fork 1 | . . . . . . . . . . . . . . . . 1 . Zone Cloak 1 | . . . . . . . . . . . 1 . . . . . . Robots Hacked 33 | . . . . . . . . . . 3 6 24 . . . . . Non-combat 9 | . . . . . . . . . . 1 . 8 . . . . . Combat 24 | . . . . . . . . . . 2 6 16 . . . . . Robot Hacks Applied 46 | . . . . . . . . . . 3 6 37 . . . . . parse_system 1 | . . . . . . . . . . . . 1 . . . . . no_distress 2 | . . . . . . . . . . . . 2 . . . . . find_chute 1 | . . . . . . . . . . . . 1 . . . . . ignore_repairs 1 | . . . . . . . . . . . . 1 . . . . . ignore_parts 1 | . . . . . . . . . . . . 1 . . . . . deconstruct_bot 1 | . . . . . . . . . . . . 1 . . . . . purge_threat 6 | . . . . . . . . . . . . 6 . . . . . reprogram_traps 1 | . . . . . . . . . . . . 1 . . . . . block_reporting 2 | . . . . . . . . . . . . 2 . . . . . find_garrison 1 | . . . . . . . . . . . . 1 . . . . . link_fov 1 | . . . . . . . . . . . . 1 . . . . . scatter_targeting 2 | . . . . . . . . . . . 1 1 . . . . . spike_heat 4 | . . . . . . . . . . . . 4 . . . . . disable_weapons 1 | . . . . . . . . . . 1 . . . . . . . go_dormant 1 | . . . . . . . . . . . 1 . . . . . . overwrite_iff 3 | . . . . . . . . . . . . 3 . . . . . streamctrl_low 2 | . . . . . . . . . . . . 2 . . . . . streamctrl_high 7 | . . . . . . . . . . . 3 4 . . . . . formatsys_low 1 | . . . . . . . . . . 1 . . . . . . . formatsys_high 7 | . . . . . . . . . . 1 1 5 . . . . . Relay Couplers Released 23 | . . . . . . . . 2 7 . 7 5 . . . 2 . Machine Destruction 16 | . . . . . . . . . 7 . 7 . . . . 2 . Programmers 7 | . . . . . . . . 2 . . . 5 . . . . . Attached 9 | . . . . . . . . . 3 . 2 3 . . . 1 . Robots Rewired . | . . . . . . . . . . . . . . . . . . Allies Hacked 3 | . . . . . . . . . . 1 . 2 . . . . . Hacks Repelled . | . . . . . . . . . . . . . . . . . . Allies | -11 -10 -10 -9 -9 -9 -8 -8 -7 -7 -7 -7 -6 -6 -6 -5 -5 -4 -------- Run | Scr Mat Min Mat Min Exi Min Mat Fac Gar Fac Gar Fac Was Fac Fac Gar Fac Total Allies 49 | . . 2 . . . . . 15 . 3 4 20 1 . . . 4 Largest Group 12 | . . 2 2 1 1 . . 12 2 3 2 6 1 . . . 4 Highest-Rated Group 309 | . . 51 51 31 26 . . 309 52 58 32 189 31 . . . 184 Highest-Rated Ally 47 | . . 31 31 31 26 . . 32 26 26 20 47 31 . . . 46 Total Orders 20 | . . . . . . . . . 5 8 3 4 . . . . . STAY 8 | . . . . . . . . . 3 4 . 1 . . . . . ROAM 2 | . . . . . . . . . . . . 2 . . . . . FOLLOW 8 | . . . . . . . . . 2 4 1 1 . . . . . GUARD 1 | . . . . . . . . . . . 1 . . . . . . AID 1 | . . . . . . . . . . . 1 . . . . . . Ally Attacks 253 | . . 3 10 6 . . . 44 . . 8 113 25 . . . 44 Total Damage 5410 | . . 42 200 127 . . . 722 . . 55 2625 357 . . . 1282 Kills 34 | . . 1 3 . . . . 4 . . . 17 . . . . 9 Allies Corrupted 1 | . . . . . . . . . . . . 1 . . . . . Allies Melted . | . . . . . . . . . . . . . . . . . . Intel | -11 -10 -10 -9 -9 -9 -8 -8 -7 -7 -7 -7 -6 -6 -6 -5 -5 -4 ------- Run | Scr Mat Min Mat Min Exi Min Mat Fac Gar Fac Gar Fac Was Fac Fac Gar Fac Robot Analysis Total 1 | . . . . . . . . . . . . 1 . . . . . Derelict Logs Recovered 2 | . . 2 . . . . . . . . . . . . . . . Drone Launches 1 | . . . . . 1 . . . . . . . . . . . . Drone Recoveries . | . . . . . . . . . . . . . . . . . . Exploration | -11 -10 -10 -9 -9 -9 -8 -8 -7 -7 -7 -7 -6 -6 -6 -5 -5 -4 ------------- Run | Scr Mat Min Mat Min Exi Min Mat Fac Gar Fac Gar Fac Was Fac Fac Gar Fac Turns Passed 16943 | 37 907 782 344 272 362 366 920 3529 1181 1370 837 2741 352 633 70 1380 860 Spaces Moved 13489 | 35 609 678 301 210 264 345 651 2710 1376 1394 737 2527 225 259 93 505 570 Core 48 | 10 38 . . . . . . . . . . . . . . . . Treads . | . . . . . . . . . . . . . . . . . . Legs 128 | . 128 . . . . . . . . . . . . . . . . Wheels 3603 | 25 443 678 301 210 264 345 651 686 . . . . . . . . . Hover 9709 | . . . . . . . . 2024 1376 1394 737 2526 225 259 93 505 570 Flight 1 | . . . . . . . . . . . . 1 . . . . . Fastest Speed 50 | 50 50 80 80 90 90 90 90 52 52 52 52 52 106 56 56 56 106 Average Speed 76 | 85 104 90 80 90 90 90 90 92 52 52 52 64 106 85 56 70 106 Slowest Speed 200 | 100 150 100 90 90 90 90 90 180 52 52 52 200 106 106 56 106 106 Overloaded Moves . | . . . . . . . . . . . . . . . . . . Propulsion Burnouts . | . . . . . . . . . . . . . . . . . . Robots Hopped . | . . . . . . . . . . . . . . . . . . Cave-ins Triggered 1 | . . . . . . . . . . . . . . . . 1 . Time Travels 1 | . . . . . 1 . . . . . . . . . . . . Exploration Rate (%) 51 | 3 74 84 32 51 65 75 48 55 90 31 86 55 86 8 4 59 13 Regions Visited 17 Branch Regions 4 Pre-discovered Areas 2 | . 1 1 . . . . . . . . . . . . . . . Known Exits Taken 5 | . . . . . . 1 . 1 . 1 . . . 1 1 . . Unknown Exits Taken 7 | 1 1 1 1 1 1 . 1 . . . . . . . . . . Scrap Searched 4 | . . 3 . 1 . . . . . . . . . . . . . Spaces Dug 13 | . . . . . . . . 1 1 1 . 10 . . . . . Terrain Destroyed 864 | . 119 100 . . . 3 77 225 23 32 19 152 1 1 . 42 70 Melee 1 | . . . . . . . . 1 . . . . . . . . . Projectile 248 | . . . . . . 3 65 58 20 16 9 40 1 1 . 22 13 AOE 615 | . 119 100 . . . . 12 166 3 16 10 112 . . . 20 57 Terrain Rammed . | . . . . . . . . . . . . . . . . . . Walls Destroyed . | . . . . . . . . . . . . . . . . . . Machines Disabled . | . . . . . . . . . . . . . . . . . . Actions | -11 -10 -10 -9 -9 -9 -8 -8 -7 -7 -7 -7 -6 -6 -6 -5 -5 -4 --------- Run | Scr Mat Min Mat Min Exi Min Mat Fac Gar Fac Gar Fac Was Fac Fac Gar Fac Total 19146 | 39 810 787 371 263 382 389 915 3573 1767 1992 1100 3461 297 665 110 1442 783 Wait 4174 | . 117 27 34 29 109 27 186 636 213 546 171 663 3 387 15 827 184 Move 13473 | 34 608 677 300 209 263 344 650 2709 1375 1393 735 2527 224 258 93 504 570 Hop . | . . . . . . . . . . . . . . . . . . Pick Up 36 | . . 1 1 . 1 . 1 4 2 3 3 9 1 . . 9 1 Fast Attach 135 | 5 28 5 11 1 2 1 11 26 2 . 2 13 7 8 1 8 4 Attach 16 | . . . . 1 . . . 4 1 . . 4 . 2 . 4 . Detach 7 | . . . 1 . . . . 4 . . . . . 2 . . . Swap 29 | . . 1 . . . 2 . 4 . 3 1 7 1 . . 4 6 Drop 144 | . 16 4 11 2 3 2 10 27 4 3 4 23 8 6 1 17 3 Fire 617 | . 26 60 12 11 4 5 35 113 59 26 59 132 18 2 . 40 15 Melee 10 | . . . . . . . . 10 . . . . . . . . . Ram 6 | . . . 1 . . 1 1 1 . . . 2 . . . . . Kick . | . . . . . . . . . . . . . . . . . . Crush . | . . . . . . . . . . . . . . . . . . Escape Stasis 246 | . . . . . . . . . 76 13 105 31 . . . 21 . Rewire 3 | . . . . 2 . . . . . . . 1 . . . . . Trap . | . . . . . . . . . . . . . . . . . . Miscellaneous 250 | . 15 12 . 8 . 7 21 35 35 5 20 49 35 . . 8 . Route ------- -11/Scrapyard -10/Materials (discovered 3 exits: *Mat x2 / [*Min]) -10/Mines (discovered 2 exits: *Mat x2) -9/Materials (discovered 2 exits: Mat / [*Min]) -9/Mines (discovered 3 exits: *Mat x2 / *Exi) -9/Exiles (discovered 2 exits: *Min x2) -8/Mines -8/Materials -7/Factory (discovered 7 exits: *Fac x4 / *Low x2 / Gar) -7/Garrison (discovered 3 exits: *Fac x3) -7/Factory (discovered 3 exits: *Low x2 / Gar) -7/Garrison (discovered 3 exits: *Fac x3) -6/Factory (discovered 6 exits: *Fac x4 / *Low x2) -6/Waste -6/Factory -5/Factory -5/Garrison -4/Factory (discovered 3 exits: Upp x2 / Arm) History --------- Turn | Location | Event 5 | -11/Scrapyard | Upgraded with Weapon slot (x3) 22 | -11/Scrapyard | Discovered new exit (range 15) 38 | -11/Scrapyard | Entered Materials 51 | -10/Materials | Discovered new exit (range 16) 166 | -10/Materials | Released all parts (7) 243 | -10/Materials | Discovered new exit (range 16) 300 | -10/Materials | Build established: Gunner 455 | -10/Materials | Discovered new exit (range 16) 642 | -10/Materials | Reached level 2 945 | -10/Materials | Entered Mines 947 | -10/Mines | Reached level 3 948 | -10/Mines | Upgraded with Weapon slot (x1) 981 | -10/Mines | Destroyed 8 combat bots 1000 | -10/Mines | Learned 8 Materials zone layouts 1317 | -10/Mines | Build established: Mutant 1391 | -10/Mines | Discovered new exit (range 5) 1447 | -10/Mines | Discovered new exit (range 16) 1635 | -10/Mines | Reached level 4 1646 | -10/Mines | Upgraded with Propulsion slot (x1) 1646 | -10/Mines | Upgraded with Utility slot (x1) 1727 | -10/Mines | Entered Materials 1727 | -9/Materials | Accompanied by 2 allies 1728 | -9/Materials | Identified exit to Materials 1729 | -9/Materials | Reached level 5 1732 | -9/Materials | Led the pair of lost Derelicts to an unsafe place 1847 | -9/Materials | Discovered new exit (range 16) 2071 | -9/Materials | Entered Mines 2071 | -9/Mines | Accompanied by 2 allies 2073 | -9/Mines | Build established: Hacker-Gunner 2073 | -9/Mines | Reached level 6 2112 | -9/Mines | Upgraded with Utility slot (x1) 2144 | -9/Mines | Assembled infested the area 2184 | -9/Mines | Discovered exit to Materials (range 14) 2276 | -9/Mines | Discovered exit to Materials (range 8) 2315 | -9/Mines | Discovered new exit (range 5) 2343 | -9/Mines | Entered Exiles 2343 | -9/Exiles | Accompanied by 1 ally 2355 | -9/Exiles | Discovered new exit (range 15) 2367 | -9/Exiles | Met 8R-AWN 2373 | -9/Exiles | Led the pair of lost Derelicts to a safe place 2400 | -9/Exiles | Met EX-HEX 2514 | -9/Exiles | Met EX-BIN 2542 | -9/Exiles | Aligned with FarCom system 2542 | -9/Exiles | Given EX-Vault access code 2565 | -9/Exiles | Opened EX-Vault 2569 | -9/Exiles | Found Prototype Device 2569 | -9/Exiles | Identified Supersonic Drone Bay 2595 | -9/Exiles | Found Prototype Ballistic Gun 2595 | -9/Exiles | Identified AWS/Gauss 2599 | -9/Exiles | Found Prototype Device 2599 | -9/Exiles | Identified Chronowheel 2599 | -9/Exiles | Activated Chronowheel 2599 | -9/Exiles | Spacetime reconverged on an earlier point 2620 | -9/Exiles | Warned to stay clear of 0b10 Research branches 2647 | -9/Exiles | Met EX-DEC 2697 | -9/Exiles | Discovered new exit (range 10) 2705 | -9/Exiles | Left Exiles lab with AWS/Gauss 2705 | -9/Exiles | Entered Mines 2707 | -8/Mines | Reached level 7 3064 | -8/Mines | Discovered exit to Materials (range 4) 3071 | -8/Mines | Entered Materials 3073 | -8/Materials | Reached level 8 3073 | -8/Materials | Upgraded with Utility slot (x1) 3563 | -8/Materials | Reached level 9 3640 | -8/Materials | Upgraded with Utility slot (x1) 3871 | -8/Materials | Reached level 10 3952 | -8/Materials | Discovered new exit (range 16) 3991 | -8/Materials | Entered Factory 3993 | -7/Factory | Reached level 11 4182 | -7/Factory | Reached level 12 4243 | -7/Factory | Repaired Broken Cooling System 4511 | -7/Factory | Reached level 13 4514 | -7/Factory | Upgraded with Utility slot (x1) 4550 | -7/Factory | Destroyed 9 combat bots 4606 | -7/Factory | Reached level 14 4653 | -7/Factory | Identified exit to Garrison 4716 | -7/Factory | Repaired Plasma Cannon? 4965 | -7/Factory | Build established: Hacker-Mutant 5110 | -7/Factory | Upgraded with Propulsion slot (x1) 5232 | -7/Factory | Fabricated Imp. Core Analyzer (x1) 5260 | -7/Factory | Discovered new exit (range 12) 5357 | -7/Factory | Fabricated Plasma Cannon? 5424 | -7/Factory | Fabricated Imp. Particle Charger (x2) 5613 | -7/Factory | Reached level 15 5655 | -7/Factory | Build established: Hacker-Gunner 5991 | -7/Factory | First assault squad dispatched 6247 | -7/Factory | Discovered new exit (range 6) 6913 | -7/Factory | Reached level 16 7186 | -7/Factory | Discovered new exit (range 14) 7186 | -7/Factory | Identified exit to Lower Caves 7186 | -7/Factory | Identified exit to Factory 7367 | -7/Factory | Identified exit to Garrison 7520 | -7/Factory | Entered Garrison 7520 | -7/Garrison | Accompanied by 2 allies 7599 | -7/Garrison | Triggered checkpoint 7630 | -7/Garrison | Reached level 17 7781 | -7/Garrison | Garrison Relay disabled 7798 | -7/Garrison | Triggered checkpoint 7798 | -7/Garrison | Triggered checkpoint 7910 | -7/Garrison | Discovered new exit (range 12) 7962 | -7/Garrison | Triggered checkpoint 7985 | -7/Garrison | Triggered checkpoint 8016 | -7/Garrison | Discovered new exit (range 10) 8036 | -7/Garrison | Triggered checkpoint 8061 | -7/Garrison | Garrison Relay disabled 8155 | -7/Garrison | Garrison Relay disabled 8164 | -7/Garrison | Triggered checkpoint 8227 | -7/Garrison | Discovered new exit (range 17) 8245 | -7/Garrison | Installed Relay Interface Framework 8308 | -7/Garrison | Triggered checkpoint 8325 | -7/Garrison | Garrison Relay disabled 8701 | -7/Garrison | Entered Factory 8701 | -7/Factory | Accompanied by 2 allies 9505 | -7/Factory | P-60 Hacker assimilated allied Administrator 4a 9797 | -7/Factory | Identified exit to Garrison 9808 | -7/Factory | Build established: Hacker-Mutant 10071 | -7/Factory | Entered Garrison 10125 | -7/Garrison | Reached level 18 10156 | -7/Garrison | Triggered checkpoint 10200 | -7/Garrison | Triggered checkpoint 10208 | -7/Garrison | Triggered checkpoint 10250 | -7/Garrison | Destroyed 13 combat bots 10293 | -7/Garrison | Discovered exit to Factory (range 10) 10300 | -7/Garrison | Expanded RIF knowledge: Zone Cloak 10328 | -7/Garrison | Triggered checkpoint 10516 | -7/Garrison | Triggered checkpoint 10539 | -7/Garrison | Garrison Relay disabled 10622 | -7/Garrison | Discovered exit to Factory (range 9) 10730 | -7/Garrison | Garrison Relay disabled 10750 | -7/Garrison | Triggered checkpoint 10824 | -7/Garrison | Triggered checkpoint 10880 | -7/Garrison | Triggered checkpoint 10884 | -7/Garrison | Garrison Relay disabled 10900 | -7/Garrison | Discovered exit to Factory (range 12) 10908 | -7/Garrison | Entered Factory 10962 | -6/Factory | Reached level 19 11096 | -6/Factory | Discovered new exit (range 5) 11221 | -6/Factory | Spotted B-75 Beast 11280 | -6/Factory | Destroyed B-75 Beast 11499 | -6/Factory | Identified exit to Lower Caves 11983 | -6/Factory | Reached level 20 12011 | -6/Factory | Garrison activated, responded to threat 12047 | -6/Factory | Found Prototype Processor 12047 | -6/Factory | Identified Exp. Signal Interpreter 12050 | -6/Factory | Found Exp. Signal Interpreter 12469 | -6/Factory | Fabricated Adv. Plasma Cannon (x2) 12511 | -6/Factory | Fabricated Adv. Plasma Cannon (x2) 12646 | -6/Factory | Identified exit to Factory 12968 | -6/Factory | Fabricated System Restoration Module (x2) 13358 | -6/Factory | First assault squad dispatched 13452 | -6/Factory | Build established: Hacker-Gunner 13460 | -6/Factory | Reached level 21 13481 | -6/Factory | Core integrity fell below 50% 13524 | -6/Factory | Destroyed 7 combat bots 13649 | -6/Factory | Sucked down chute 13649 | -6/Factory | Entered Waste 13650 | -6/Waste | Met a frightened Derelict 13656 | -6/Waste | Spotted C-40 Crusher 13665 | -6/Waste | Destroyed C-40 Crusher 13683 | -6/Waste | Found Damper Plating 13705 | -6/Waste | Spotted C-40 Crusher 13707 | -6/Waste | Spotted C-40 Crusher 13715 | -6/Waste | Destroyed C-40 Crusher 13729 | -6/Waste | Destroyed C-40 Crusher 13748 | -6/Waste | Spotted C-40 Crusher 13749 | -6/Waste | Spotted C-40 Crusher 13770 | -6/Waste | Destroyed C-40 Crusher 13793 | -6/Waste | Crushed by Compactor (1 part destroyed, 1 dropped) 13829 | -6/Waste | Destroyed C-40 Crusher 13875 | -6/Waste | Spotted C-40 Crusher 13877 | -6/Waste | Destroyed C-40 Crusher 13988 | -6/Waste | Discovered new exit (range 12) 14001 | -6/Waste | Entered Factory 14203 | -6/Factory | Fabricated Adv. Plasma Cannon (x2) 14488 | -6/Factory | Local fabrication network quarantined 14621 | -6/Factory | Discovered exit to Factory (range 9) 14634 | -6/Factory | Entered another Factory area 14704 | -5/Factory | Identified exit to Garrison 14704 | -5/Factory | Entered Garrison 14775 | -5/Garrison | Reached level 22 14806 | -5/Garrison | Triggered checkpoint 14906 | -5/Garrison | Triggered checkpoint 14932 | -5/Garrison | Discovered new exit (range 11) 14937 | -5/Garrison | Identified exit to Factory 14941 | -5/Garrison | Expanded RIF knowledge: Command Fork 14962 | -5/Garrison | Triggered checkpoint 15028 | -5/Garrison | Crushed by falling debris 15028 | -5/Garrison | Core integrity fell below 50% 15028 | -5/Garrison | System corruption reached 10% 15079 | -5/Garrison | Garrison Relay disabled 15854 | -5/Garrison | Triggered checkpoint 15902 | -5/Garrison | Destroyed 8 combat bots 16084 | -5/Garrison | Entered Factory 16085 | -4/Factory | Core integrity fell below 50% 16086 | -4/Factory | Reached level 23 16185 | -4/Factory | Upgraded with Power slot (x1) 16212 | -4/Factory | Identified exit to Upper Caves 16212 | -4/Factory | Identified exit to Armory 16369 | -4/Factory | Fabricated X-72 Disruptor (x2) 16372 | -4/Factory | Imp. Hacking Suite fried by hacking feedback 16388 | -4/Factory | Local fabrication network quarantined 16400 | -4/Factory | Fabricated X-72 Disruptor (x2) 16434 | -4/Factory | Reached level 24 16640 | -4/Factory | Repaired Broken Micro-nuke Launcher 16939 | -4/Factory | Core integrity fell below 20% 16944 | -4/Factory | Destroyed by G-67 Veteran with Plasma Rifle Last Messages --------------- 16936_ Destroyed Electrolaser. 16936_ Destroyed Unknown Reactor. 16938_ Fusion Modulator explodes. 16938_ Fabricator disabled. 16938_ Disruptor 7d destroyed. 16938_ Destroyed Imp. Arc Projector. 16938_ Disruptor 7a destroyed. 16938_ Fusion Modulator explodes. 16938_ Disruptor 7b destroyed. 16938_ Fusion Modulator explodes. 16940_ U-05 Engineer lays Concrete. 16940_ Destroyed Adv. Heat Sink. 16940_ Destroyed Plasma Rifle. 16940_ Destroyed Flexi-carbon Leg. 16940_ G-67 Veteran destroyed. 16941_ U-05 Engineer lays Concrete. 16941_ Disruptor 7c destroyed. 16941_ Penetrated by Slug. 16942_ U-05 Engineer builds a Wall. 16943_ Overheating: Energy bleed (-266). Map ----- +----------------------------------------------------+ | ?????????????????????????????????????????????????? | | ?????????????????????????????????????????????????? | | ?????????????????????????????????????????????????? | | ?????????????????????????????????????????????????? | | ?????????????????????????????????????????????????? | | ??????????????????????????????????? ?????????????? | | ??????????????????????????????????? #????????????? | | ??????????????????????????????????? #????????????? | | ??????????????????????????????????? #????????????? | | ??????????????????????????????????? #????????????? | | ?????????????????????#########????+ #????????????? | | ?????????????????? #????# #????????????? | | ???????????????? ###### #????????????? | | ?????????????? t #????????????? | | ????????????? #????????????? | | ???????????? #####+#??????? | | ???????????? ! ! +??????? | | ??????????? #??????? | | ??????????? """ #######? | | ?????????? """ # #? | | ?????????? # T ## | | ?????????? | | ????????? w | | ???????? u# | | ???????? ### | | ???????# @ Y | | ???????# g % % | | ???????# g % % | | ???????? #######;; ;;;;; ;;;;;; # # | | ???????????????????# ###;;;# # | | ???????????????????# ! = + ## | | ???????????????????# ]] | #######+##+# # | | ???????????????????# [ #?????# ## # | | ???????????????????#! #?????# "" ## | | ???????????????????# ! #?????# "G ### # | | ???????????????????# #?????# "" # | | ???????????????????######+######?????#! # | | ?????????????????????????????????????# # | | ?????????????????????????????????????######## | | ????????????????????????????????????????????# | | ????????????????????????????????????????????# | | ????????????????????????????????????????????# | | ????????????????????????????????????????????###### | | ?????????????????????????????????????????????????? | | ?????????????????????????????????????????????????? | | ?????????????????????????????????????????????????? | | ?????????????????????????????????????????????????? | | ?????????????????????????????????????????????????? | | ?????????????????????????????????????????????????? | | ?????????????????????????????????????????????????? | +----------------------------------------------------+ Best States ------------- Heat Dissipation 147 Coolant Potential 65 Energy Generation 52 Energy Capacity 1300 Matter Stores 300 Matter Capacity 450 Sight Range 23 Robot Scan Range 16 Terrain Scan Density 10 Jamming Range 12 Additional Mass Support 12 Armor Coverage 1200 Resistance: KI 20 Resistance: TH 15 Resistance: EX 20 Resistance: EM 90 Weapon Cycling 15 Evasion (%) 54 Targeting Accuracy 8 Launcher Accuracy 20 Core Analysis 8 Armor Integrity Analysis 33 Particle Charging 25 Kinecelleration 30 Offensive Hacking 32 Defensive Hacking 25 Relay Coupler Types 195 Relay Coupler Value 5 Item Schematics ----------------- Imp. Particle Charger | -7/Factory | Hacked Imp. Core Analyzer | -7/Factory | Hacked Plasma Cannon | -7/Factory | Scanalyzed Nuclear Core | -7/Factory | Extracted Imp. Targeting Computer | -7/Factory | Extracted Recoil Stabilizer | -7/Factory | Extracted Com. Matter Pod | -7/Factory | Extracted Particle Charger | -7/Factory | Extracted Dynamic Insulation System | -7/Factory | Extracted Adv. Terrain Scanner | -7/Factory | Extracted Gauss Cannon | -7/Factory | Extracted Hyp. Gauss Rifle | -7/Factory | Hacked Imp. ECM Suite | -7/Factory | Extracted Imp. Reclamation Unit | -7/Factory | Extracted Adv. Weight Redist. System | -7/Factory | Extracted Shotgun | -7/Factory | Extracted Imp. Field Recycling Unit | -7/Factory | Extracted Nuclear Pulse Array | -7/Factory | Hacked Cooling System | -7/Factory | Extracted Adv. Plasma Cannon | -6/Factory | Hacked Targeting Computer | -6/Factory | Extracted Component Analysis Suite | -6/Factory | Extracted Fission Core | -6/Factory | Extracted Maneuvering Thrusters | -6/Factory | Extracted Hpw. Shock Rifle | -6/Factory | Extracted Lightning Gun | -6/Factory | Extracted Hcp. Matter Pod | -6/Factory | Extracted Imp. Terrain Scan Processor | -6/Factory | Extracted Greatsword | -6/Factory | Extracted Plasma Cutter | -6/Factory | Extracted Great Axe | -6/Factory | Extracted Imp. Signal Interpreter | -6/Factory | Extracted Imp. EM Pulse Cannon | -6/Factory | Extracted Adv. Signal Interpreter | -6/Factory | Extracted Gauss Rifle | -6/Factory | Extracted Arm. Huge Wheel | -6/Factory | Extracted Power Amplifier | -6/Factory | Extracted Adv. Targeting Computer | -6/Factory | Extracted Arm. Wheel | -6/Factory | Extracted Imp. Cryofiber Web | -6/Factory | Hacked Hvy. Shock Bomb Launcher | -6/Factory | Hacked System Restoration Module | -6/Factory | Hacked Adv. Hacking Suite | -6/Factory | Hacked Phase Cannon | -6/Factory | Hacked Micro-nuke Launcher | -4/Factory | Scanalyzed Chainsword | -4/Factory | Extracted Lyr. Medium Armor Plating | -4/Factory | Extracted Gyrokinetic Inverter | -4/Factory | Extracted Transport Network Coupler | -4/Factory | Extracted Imp. Component Analysis Suite | -4/Factory | Extracted Exp. System Shield | -4/Factory | Extracted Hardlight Generator | -4/Factory | Extracted System Backup Module | -4/Factory | Extracted Robot Schematics ------------------ G-50 Soldier | -6/Factory | Hacked O-24 Administrator | -6/Factory | Hacked Fabricated ------------ Imp. Core Analyzer | x1 | -7/Factory Plasma Cannon | x2 | -7/Factory Imp. Particle Charger | x2 | -7/Factory Adv. Plasma Cannon | x2 | -6/Factory Adv. Plasma Cannon | x2 | -6/Factory System Restoration Module | x2 | -6/Factory Adv. Plasma Cannon | x2 | -6/Factory X-72 Disruptor | x2 | -4/Factory | Preloaded X-72 Disruptor | x2 | -4/Factory | Preloaded Alien Tech Used ----------------- None Achievements -------------- None Challenges ------------ None RPGLIKE | -11 -10 -10 -9 -9 -9 -8 -8 -7 -7 -7 -7 -6 -6 -6 -5 -5 -4 --------- Run | Scr Mat Min Mat Min Exi Min Mat Fac Gar Fac Gar Fac Was Fac Fac Gar Fac Levels Raised 23 | . 1 2 1 1 . 1 3 6 1 . 1 3 . . . 1 2 XP Earned 38572 | 3000 2485 2212 2492 1425 350 925 4768 8968 1391 412 715 4001 32 41 734 1520 3101 XP Spent 37495 | 2950 . 4450 1585 1480 . 1530 4355 9030 1450 . 750 5375 . . . 1415 3125 Upgrades 83 | 7 . 12 6 4 . 5 9 15 4 . 1 8 . . . 5 7 Power Slot 1 | . . . . . . . . . . . . . . . . . 1 Propulsion Slot 2 | . . 1 . . . . . 1 . . . . . . . . . Utility Slot 5 | . . 1 . 1 . . 2 1 . . . . . . . . . Weapon Slot 4 | 3 . 1 . . . . . . . . . . . . . . . Core Integrity 11 | . . . 1 2 . 2 3 . . . . . . . . 3 . Heat Dissipation 12 | 1 . 5 2 . . 1 . 2 . . . . . . . 1 . Energy Generation 3 | . . 2 . . . . . . . . . . . . . 1 . Energy Storage 5 | . . . . . . . . 1 . . . 2 . . . . 2 Mass Support 3 | 1 . . . . . . . 2 . . . . . . . . . Inventory Capacity 5 | . . 1 . . . . . 1 . . 1 2 . . . . . Sight Range 1 | . . . . . . . 1 . . . . . . . . . . Sensor Range 1 | . . . . . . . . . . . . . . . . . 1 Ranged Accuracy 6 | . . . . . . 1 1 2 . . . . . . . . 2 Hack Attack % 4 | 1 . 1 . 1 . . 1 . . . . . . . . . . Hack Defense % 4 | 1 . . 1 . . . . 1 . . . 1 . . . . . KI Resistance % 4 | . . . . . . . . 1 2 . . 1 . . . . . TH Resistance % 3 | . . . . . . . . 1 1 . . 1 . . . . . EX Resistance % 4 | . . . . . . . . 1 1 . . 1 . . . . 1 KI Damage % 1 | . . . . . . . 1 . . . . . . . . . . TH Damage % 4 | . . . 2 . . 1 . 1 . . . . . . . . . Protomatter Created 4494 | . 188 54 . 54 . 49 461 1209 377 74 537 794 355 . . 309 33 Integrity Restored 5267 | . 325 231 . 162 . 147 405 741 752 99 384 1060 790 . . 171 . Core 4610 | . 325 231 . 162 . 147 379 718 563 99 291 946 578 . . 171 . Parts 657 | . . . . . . . 26 23 189 . 93 114 212 . . . . Protomatter Decayed 2560 | . 13 . . 38 . . 283 846 122 41 357 622 . . . 238 . Game ------ Seed TransmissionLatentEngine Manual? 0 Play Time 05:09:22 Cumulative 79.0 hours Start 2020.09.28 @ 14:10:36 End 2020.09.28 @ 20:34:42 Sessions 1 Manual Loads 0 Difficulty Rogue Special Mode Winter2019/RPGLIKE Game No. 93 Rogue 69 Adventurer 22 Explorer 2 Win Type - Total 1 Types 1/0/0/0/0/0/0/0/0 Lore% 43 Gallery% 47 Achievement% 39 Wizard Run 0 Options --------- ASCII 0 Keyboard 0 Movement Numpad Keybinds 0 Fullscreen 1 Font 14/SmallcapsGlow Map View 84x54 Tactical HUD 1 Map Filters NONE Filters NONE Steam 1 RUN: bb0ffce8-f95b-40d2-b131-65f634489c66